fUSD/lending_fUSD_20240920
["ID","MTS","AMOUNT","RATE_DAILY","PERIOD"]
[338631139,1726821031509,-823.4567,0.0001279,2]
[338631140,1726821031519,-450.92263485,0.0001287,2]
[338631141,1726821031531,-1193.2094491,0.0001287,2]
[338631142,1726821031543,-104.14619858,0.0001287,2]
[338631143,1726821031553,-300.0,0.00012899,2]
[338631144,1726821031563,-471.1311,0.000129,2]
[338631145,1726821031573,-152.74,0.000129,2]
[338631146,1726821031583,-273.8932,0.000129,2]
[338631147,1726821031593,-551.274479,0.000129,2]
[338631148,1726821031605,-1834.668321,0.000129,2]
[338631149,1726821031615,-161.14214811,0.000129,2]
[338631150,1726821031625,-173.61826801,0.000129,2]
[338631151,1726821031635,-158.8066396,0.000129,2]
[338631152,1726821031644,-5591.94308077,0.000129,2]
[338631153,1726821031654,-500.0,0.00012973,2]
[338631154,1726821031664,-1523.14014281,0.0001299,2]
[338631155,1726821031673,-152.81,0.0001299,2]
[338631156,1726821031683,-152.81,0.0001299,2]
[338631157,1726821031695,-152.81,0.0001299,2]
[338631158,1726821031712,-447.8422163,0.00012996,2]
[338631159,1726821031721,-2472.9196243,0.00012996,2]
[338631160,1726821031731,-1283.74838962,0.00012996,2]
[338631161,1726821031742,-635.03754,0.00012996,2]
[338631163,1726821031754,-2588.45068626,0.00012996,2]
[338631166,1726821031765,-2000.37034013,0.00012996,2]
[338631170,1726821037741,-1996.59225259,0.00012996,2]
[338631171,1726821037751,-150.0,0.00012998,2]
[338631172,1726821037761,-242603.70320931,0.00012999,2]
[338631173,1726821037773,-303.35,0.00012999,2]
[338631174,1726821037800,-473.48451638,0.00012999,2]
[338631355,1726821039741,-5192.66580833,0.00012999,2]
[338631553,1726821042472,-1006.42471873,0.00012999,2]
[338631554,1726821042484,-780.82235535,0.00012999,2]
[338631748,1726821044413,173.757034,0.00012444,2]
[338631783,1726821044743,173.757034,0.00012652,2]
[338631863,1726821045488,-173.757034,0.00012859,2]
[338631865,1726821045498,-12533.242966,0.00012999,2]
[338632594,1726821068320,500.0,0.00023,120]
[338632595,1726821082394,325.142507,0.00012444,2]
[338632596,1726821082700,325.142507,0.000126,2]
[338632597,1726821156643,500.0,0.00022999,120]
[338632598,1726821156928,251.91436037,0.00022999,120]
[338632599,1726821231767,500.0,0.00012499,2]
[338632600,1726821342285,5430.924499,0.00012444,2]
[338632601,1726821342666,5430.924499,0.000126,2]
[338632602,1726821344323,322.260508,0.00012444,2]
[338632603,1726821344649,322.260508,0.000126,2]
[338632604,1726821357201,1000.0,0.000122,2]
[338632605,1726821413012,161.130256,0.00012444,2]
[338632606,1726821416622,184.532837,0.00012444,2]
[338632607,1726821417418,184.532837,0.000126,2]
[338632608,1726821425117,212.18,0.00010226,2]
[338632609,1726821425328,212.18,0.0001249,2]
[338632610,1726821456503,289.12,0.00012012,2]
[338632611,1726821501563,1964.85750601,0.00012,2]
[338632612,1726821549327,155.36,0.00011997,2]
[338632613,1726821668062,500.0,0.00023,120]
[338632614,1726821694642,250.0,0.00011965,2]
[338632615,1726821973410,1000.0,0.00011973,2]
[338632617,1726822079599,190.96,0.00010048,2]
[338632618,1726822079829,190.96,0.00012311,2]
[338632619,1726822161079,189.94,0.00011965,2]
[338632636,1726822231695,-325.142507,0.00012756,2]
[338632637,1726822231705,-3606.48559147,0.00012756,2]
[338632638,1726822231753,-1271.4378,0.00012756,2]
[338632639,1726822231764,-553.00110753,0.00012756,2]
[338632640,1726822231774,-322.260508,0.00012756,2]
[338632641,1726822231784,-184.532837,0.00012756,2]
[338632642,1726822231794,-273.71973844,0.00012799,2]
[338632643,1726822231803,-273.7197384,0.0001281,2]
[338632644,1726822231816,-273.7197384,0.00012821,2]
[338632645,1726822231825,-273.7197384,0.00012833,2]
[338632646,1726822231835,-273.7197384,0.00012844,2]
[338632647,1726822231851,-150.0,0.00012849,2]
[338632648,1726822231860,-273.7197384,0.00012855,2]
[338632649,1726822231870,-273.7197384,0.00012866,2]
[338632650,1726822231880,-499.99,0.00012873,2]
[338632651,1726822231889,-273.7197384,0.00012878,2]
[338632652,1726822231898,-1418.43416502,0.0001288,2]
[338632653,1726822231909,-273.7197384,0.00012889,2]
[338632654,1726822231918,-150.0,0.00012889,2]
[338632655,1726822231928,-542.4253767,0.0001289,2]
[338632656,1726822231940,-1267.92666,0.0001289,2]
[338632657,1726822231952,-655.08169987,0.0001289,2]
[338632658,1726822231963,-1161.35257624,0.0001289,2]
[338632659,1726822231975,-1184.24886143,0.0001289,2]
[338632711,1726822238503,-301.18,0.0001289,2]
[338632712,1726822238515,-63499.72204384,0.0001289,2]
[338632713,1726822238526,-2363.79206653,0.0001289,2]
[338632714,1726822238537,-551.54977433,0.0001289,2]
[338632715,1726822238548,-3028.62938979,0.0001289,2]
[338632718,1726822239648,-362.98434485,0.0001289,2]
[338632743,1726822240198,250.0,0.00012183,2]
[338632791,1726822242668,-175081.10720642,0.0001289,2]
[338632792,1726822242678,-222.88946008,0.00012899,2]
[338632793,1726822242687,-361.33023562,0.00012899,2]
[338632794,1726822242697,-332.72904476,0.000129,2]
[338632795,1726822242707,-273.7197384,0.000129,2]
[338632796,1726822242716,-347.36780753,0.000129,2]
[338632797,1726822242726,-547.3713767,0.000129,2]
[338632798,1726822242735,-325.142507,0.00012911,2]
[338632799,1726822242745,-5430.924499,0.00012911,2]
[338632800,1726822242755,-322.260508,0.00012911,2]
[338632801,1726822242764,-184.532837,0.00012911,2]
[338632802,1726822242774,-500.0,0.00012973,2]
[338632803,1726822242783,-156.36,0.0001299,2]
[338632804,1726822242793,-156.36,0.0001299,2]
[338632805,1726822242804,-156.36,0.0001299,2]
[338632806,1726822242815,-288.711,0.00012995,2]
[338632807,1726822242824,-175.909,0.00012995,2]
[338632808,1726822242833,-8977.3153949,0.00012996,2]
[338632809,1726822242843,-14966.65,0.00012999,2]
[338632810,1726822242856,-205481.09230307,0.00012999,2]
[338632811,1726822242865,-500.0,0.00012999,2]
[338632812,1726822242875,-346.88544357,0.00012999,2]
[338632813,1726822242887,-227.17796398,0.00012999,2]
[338632814,1726822242896,-226.11074038,0.00012999,2]
[338632815,1726822242906,-637.0,0.00013,2]
[338632816,1726822242916,-332215.93191788,0.00013,2]
[338632817,1726822242925,-150.0,0.00013,2]
[338632818,1726822242935,-15039.47,0.00013,2]
[338632819,1726822242944,-117080.80984827,0.00013,2]
[338632829,1726822260363,724.06,0.00010959,2]
[338632830,1726822266438,500.0,0.00023,120]
[338632831,1726822325241,320.8747,0.00012656,2]
[338632832,1726822491343,4000.0,0.00011,2]
[338632833,1726822682435,171.86,0.00010539,2]
[338632834,1726822722094,204.42,0.00012472,2]
[338632835,1726822767115,1000.0,0.00012472,2]
[338632836,1726822803147,5000.0,0.0001264,4]
[338632837,1726822848647,250.0,0.00012375,2]
[338632838,1726822868301,500.0,0.00023,120]
[338632839,1726822993606,2000.0,0.000125,7]
[338632840,1726823054962,395.16004784,0.00012701,2]
[338632841,1726823114400,150.0,0.00011688,2]
[338632842,1726823230876,163.26,0.00010475,2]
[338632843,1726823231082,163.26,0.00012739,2]
[338632844,1726823273657,223.73,0.00010959,2]
[338632845,1726823321636,274.0,0.00010959,2]
[338632846,1726823322692,500.0,0.00010959,2]
[338632847,1726823323082,500.0,0.00010959,2]
[338632848,1726823341423,155.36,0.00012386,2]
[338632850,1726823370841,1000.0,0.00012386,2]
[338632851,1726823398598,250.0,0.00012386,2]
[338632852,1726823410645,739.14648,0.00012726,2]
[338632855,1726823431986,-4750.0,0.0001279,2]
[338632856,1726823437898,-3089.87255993,0.0001279,2]
[338632857,1726823437954,-1117.92172209,0.0001279,2]
[338632858,1726823438011,-3776.20571798,0.0001279,2]
[338632859,1726823438021,-151.57,0.0001289,2]
[338632860,1726823438031,-152.95,0.0001289,2]
[338632861,1726823438042,-152.72,0.0001289,2]
[338632862,1726823438051,-150.44,0.0001289,2]
[338632863,1726823438060,-200.0,0.00012896,2]
[338632864,1726823438070,-1495.77991495,0.000129,2]
[338632865,1726823438080,-561.21663832,0.00012973,2]
[338632866,1726823438089,-230.969,0.00012999,2]
[338632867,1726823438099,-2398.98490248,0.00012999,2]
[338632868,1726823438107,-499.99,0.00012999,2]
[338632869,1726823438117,-150.0,0.00012999,2]
[338632870,1726823438127,-16427.5462558,0.00013,2]
[338632875,1726823438139,-1004.60953014,0.00013,2]
[338632876,1726823438355,-1234.63522344,0.00013,2]
[338632912,1726823440172,-318.47620575,0.00013,2]
[338632921,1726823440244,-5721.82951196,0.00013,2]
[338633189,1726823443005,-5259.23276218,0.00013,2]
[338633190,1726823443018,-1921.39077216,0.00013,2]
[338633191,1726823443028,-516.0,0.00013,2]
[338633192,1726823443038,-23084.30978344,0.00013,2]
[338633193,1726823443051,-884.68342284,0.00013,2]
[338633246,1726823445932,-250.0,0.00013,2]
[338633247,1726823445944,-1159.14550295,0.00013,2]
[338633248,1726823446097,-507.648,0.00013,2]
[338633249,1726823464671,500.0,0.00011164,2]
[338633250,1726823468498,471.68937991,0.00023,120]
[338633251,1726823471297,176.43,9.886e-05,2]
[338633252,1726823489184,150.0,0.00012732,2]
[338633253,1726823489574,197.45493291,0.00012739,2]
[338633254,1726823495065,250.0,0.00011915,2]
[338633255,1726823507496,3534.1947,0.0001269,2]
[338633256,1726823553482,150.0,0.00012734,2]
[338633257,1726823556197,255.37,0.00010959,2]
[338633258,1726823596395,250.0,0.00011917,2]
[338633259,1726823608666,6837.14,0.00011917,2]
[338633260,1726823612560,274.11,0.00011917,2]
[338633261,1726823651773,900.74159796,0.000127,2]
[338633262,1726823724390,270.7,0.00011911,2]
[338633263,1726823731730,496.45,0.00011911,2]
[338633264,1726823756991,160.8,9.993e-05,2]
[338633265,1726823757200,160.8,0.00012257,2]
[338633267,1726823811590,3199.36,0.00011911,2]
[338633268,1726823818958,21004.77,0.00011911,2]
[338633269,1726823824838,397.41,0.00011911,2]
[338633270,1726823825062,397.41,0.00011914,2]
[338633272,1726823825477,397.41,0.00011917,2]
[338633273,1726823825685,397.41,0.0001192,2]
[338633274,1726823825901,397.41,0.00011923,2]
[338633275,1726823826128,397.41,0.00011926,2]
[338633276,1726823826326,397.41,0.00011929,2]
[338633277,1726823826532,397.41,0.00011933,2]
[338633278,1726823826759,397.41,0.00011936,2]
[338633279,1726823826957,397.41,0.00011939,2]
[338633280,1726823827157,397.41,0.00011942,2]
[338633281,1726823827367,397.41,0.00011945,2]
[338633282,1726823827667,397.41,0.00011948,2]
[338633283,1726823827897,397.41,0.00011951,2]
[338633284,1726823828101,397.41,0.00011954,2]
[338633285,1726823828302,397.41,0.00011958,2]
[338633286,1726823828518,397.41,0.00011961,2]
[338633287,1726823828722,397.41,0.00011964,2]
[338633288,1726823828928,397.41,0.00011967,2]
[338633289,1726823829292,397.41,0.0001197,2]
[338633290,1726823865774,179.8,0.00010959,2]
[338633292,1726823873073,203.58,0.00011911,2]
[338633294,1726823890436,172.09,0.00011911,2]
[338633295,1726823909380,200.0,0.00011916,2]
[338633296,1726823915687,316.555046,0.00012691,2]
[338633297,1726823930013,250.0,0.00011917,2]
[338633298,1726823938555,-150.0,0.00012744,2]
[338633299,1726823938580,-150.0,0.00012755,2]
[338633300,1726823938606,-150.0,0.00012757,2]
[338633301,1726823938633,-150.0,0.00012778,2]
[338633302,1726823938657,-150.0,0.00012787,2]
[338633303,1726823938680,-150.0,0.00012795,2]
[338633304,1726823972296,162.33,0.00011935,2]
[338633306,1726824021009,176.43,9.551e-05,2]
[338633308,1726824099327,150.0,0.00012781,2]
[338633309,1726824099389,150.0,0.00012733,2]
[338633310,1726824099448,150.0,0.00012789,2]
[338633311,1726824099483,150.0,0.00012768,2]
[338633312,1726824099645,150.0,0.00012782,2]
[338633313,1726824099692,150.0,0.00012739,2]
[338633314,1726824099858,150.0,0.00012774,2]
[338633315,1726824100010,150.0,0.00012756,2]
[338633316,1726824107185,1500.0,0.0001278,2]
[338633317,1726824109214,150.0,0.00012751,2]
[338633318,1726824167323,200.0,0.00011951,2]
[338633321,1726824313293,150.0,0.00011688,2]
[338633322,1726824317888,159.53,0.00010023,2]
[338633323,1726824318110,159.53,0.00012286,2]
[338633324,1726824382625,270.7,0.00011945,2]
[338633327,1726824461044,840.0,0.0001193,2]
[338633335,1726824548337,152.66,0.00010959,2]
[338633342,1726824586120,250.0,0.0001193,2]
[338633350,1726824632123,-150.0,0.00012804,2]
[338633351,1726824632133,-152.65,0.00012808,2]
[338633352,1726824632144,-150.0,0.00012811,2]
[338633353,1726824632156,-2561.867,0.00012816,2]
[338633354,1726824632242,-294.15884645,0.00012816,2]
[338633355,1726824632305,-211.10635355,0.00012816,2]
[338633356,1726824632315,-38.89364645,0.00012817,2]
[338633372,1726824638273,-111.10635355,0.00012817,2]
[338633373,1726824638283,-150.0,0.00012819,2]
[338633374,1726824638296,-150.0,0.0001285,2]
[338633375,1726824638305,-150.0,0.00012851,2]
[338633376,1726824638314,-150.0,0.00012858,2]
[338633377,1726824638324,-150.0,0.00012858,2]
[338633378,1726824638334,-820.74,0.00012858,2]
[338633379,1726824638344,-999.99,0.00012858,2]
[338633380,1726824638354,-1704.82,0.00012858,2]
[338633381,1726824638363,-862.67,0.00012864,2]
[338633382,1726824638374,-499.99,0.00012864,2]
[338633383,1726824638384,-150.0,0.00012873,2]
[338633385,1726824638393,-150.0,0.00012874,2]
[338633386,1726824638403,-150.0,0.0001288,2]
[338633387,1726824638411,-1500.0,0.00012887,2]
[338633388,1726824638421,-534.96317343,0.00012899,2]
[338633389,1726824638430,-150.0,0.00012899,2]
[338633390,1726824638440,-534.96317334,0.00012899,2]
[338633392,1726824638450,-534.96317334,0.00012899,2]
[338633393,1726824638460,-534.96317334,0.00012899,2]
[338633394,1726824638470,-534.96317334,0.00012899,2]
[338633395,1726824638480,-534.96317334,0.000129,2]
[338633396,1726824638490,-534.96317334,0.000129,2]
[338633397,1726824638499,-61589.7382,0.000129,2]
[338633398,1726824638509,-2118.4782,0.000129,2]
[338633399,1726824638519,-2941.976,0.000129,2]
[338633400,1726824638529,-534.96317334,0.000129,2]
[338633401,1726824638541,-534.96317334,0.000129,2]
[338633402,1726824638551,-187.1738,0.000129,2]
[338633403,1726824638560,-827.350988,0.000129,2]
[338633404,1726824638570,-3684.9522,0.000129,2]
[338633405,1726824638580,-534.96317334,0.000129,2]
[338633406,1726824638590,-171.91852514,0.000129,2]
[338633407,1726824638600,-932.31,0.000129,2]
[338633408,1726824638609,-232.14682235,0.000129,2]
[338633409,1726824638620,-207.18361201,0.000129,2]
[338633410,1726824638631,-173.42378679,0.000129,2]
[338633411,1726824638644,-151.93,0.00012905,2]
[338633412,1726824638654,-150.0,0.0001291,2]
[338633413,1726824638663,-150.0,0.00012923,2]
[338633414,1726824638673,-150.0,0.00012948,2]
[338633415,1726824638683,-150.0,0.00012964,2]
[338633416,1726824638692,-1500.0,0.00012972,2]
[338633417,1726824638701,-500.57611621,0.00012973,2]
[338633418,1726824638713,-275.15591882,0.00012986,2]
[338633419,1726824638723,-152.7,0.0001299,2]
[338633420,1726824638733,-150.0,0.00012991,2]
[338633421,1726824638743,-4083.5817169,0.00012996,2]
[338633422,1726824638752,-8600.3835003,0.00012996,2]
[338633423,1726824638762,-28090.16823233,0.00012997,2]
[338633424,1726824638771,-14790.72,0.00012998,2]
[338633425,1726824639029,-500.0,0.00012999,2]
[338633426,1726824639040,-500.0,0.00012999,2]
[338633427,1726824639051,-347.78045489,0.00012999,2]
[338633428,1726824639061,-15205.81,0.00013,2]
[338633429,1726824639071,-521.0,0.00013,2]
[338633430,1726824639080,-206783.09758458,0.00013,2]
[338633431,1726824639090,-14902.02,0.00013,2]
[338633432,1726824639099,-1097202.06182365,0.00013,2]
[338633433,1726824639112,-250.95969819,0.00013,2]
[338633434,1726824639123,-700.0,0.00013,2]
[338633438,1726824640105,-157.63939403,0.000129,2]
[338633439,1726824640115,-452.39960296,0.00013,2]
[338633440,1726824640127,-2068.30430992,0.00013,2]
[338633441,1726824640138,-580.63202376,0.00013,2]
[338633476,1726824646288,-635.74,0.00013,2]
[338633479,1726824665659,150.0,0.00012748,2]
[338633480,1726824665710,150.0,0.00012759,2]
[338633481,1726824665994,150.0,0.00012762,2]
[338633482,1726824666052,150.0,0.00012727,2]
[338633483,1726824673748,150.0,0.00012795,2]
[338633484,1726824673870,150.0,0.00012788,2]
[338633485,1726824673925,150.0,0.00012738,2]
[338633486,1726824674432,150.0,0.00012741,2]
[338633487,1726824674469,150.0,0.00012781,2]
[338633488,1726824674511,176.54771119,0.00012729,2]
[338633489,1726824674546,150.0,0.0001279,2]
[338633490,1726824674916,303.000445,0.0001235,2]
[338633491,1726824675972,1880.6002,0.000128,2]
[338633493,1726824684477,162.571253,0.00012444,2]
[338633496,1726824735970,1699.93570359,0.00015,30]
[338633499,1726824772104,228.90940432,0.00012708,2]
[338633501,1726824800399,229.01,0.00011974,2]
[338633503,1726824814908,348.09,0.00011974,2]
[338633504,1726824829324,159.54787964,0.00012708,2]
[338633505,1726824834266,159.54787964,0.00012713,2]
[338633506,1726824839288,159.54787964,0.00012718,2]
[338633509,1726824857573,151.13,0.00010259,2]
[338633510,1726824858012,151.13,0.00012648,2]
[338633511,1726824876043,274.34,0.00011974,2]
[338633513,1726824886193,966.90295397,0.00023,120]
[338633515,1726824903399,21458.86,0.00011974,2]
[338633520,1726824997251,328.0,0.00011974,2]
[338633521,1726825008957,70.31734757,0.00012444,2]
[338633522,1726825008984,90.81290643,0.00012444,2]
[338633524,1726825017466,1157.842874,0.00012444,2]
[338633525,1726825017802,1157.842874,0.000126,2]
[338633529,1726825080393,2481.76,0.00011974,2]
[338633531,1726825093669,460.63,0.00012041,2]
[338633533,1726825124154,175.2,0.00012176,2]
[338633535,1726825139179,157.95,0.00010959,2]
[338633536,1726825144433,176.43,9.556e-05,2]
[338633539,1726825156780,170.42,0.00011946,2]
[338633540,1726825184503,279.37,0.00011946,2]
[338633544,1726825275880,250.0,0.00011946,2]
[338633547,1726825386122,151.13,9.999e-05,2]
[338633548,1726825386367,151.13,0.00012687,2]
[338633550,1726825504443,461.51471724,0.00011688,2]
[338633551,1726825504759,461.51471724,0.00011701,2]
[338633552,1726825505081,461.51471724,0.00011714,2]
[338633553,1726825505540,461.51471724,0.00011727,2]
[338633554,1726825505899,461.51471724,0.0001174,2]
[338633555,1726825506222,461.51471724,0.00011753,2]
[338633556,1726825506578,461.51471724,0.00011766,2]
[338633557,1726825506911,461.51471724,0.00011779,2]
[338633558,1726825507308,461.51471724,0.00011793,2]
[338633559,1726825507974,461.51471724,0.00011806,2]
[338633560,1726825508308,461.51471724,0.00011819,2]
[338633561,1726825508623,461.51471724,0.00011832,2]
[338633562,1726825509387,461.51471724,0.00011845,2]
[338633563,1726825509762,461.51471724,0.00011858,2]
[338633565,1726825511617,461.51471724,0.00011871,2]
[338633566,1726825511976,461.51471724,0.00011884,2]
[338633567,1726825512315,461.51471724,0.00011898,2]
[338633568,1726825512671,461.51471724,0.00011911,2]
[338633569,1726825513103,461.51471724,0.00011924,2]
[338633570,1726825513422,461.51471724,0.00011937,2]
[338633571,1726825513753,461.51471724,0.0001195,2]
[338633572,1726825514111,461.51471724,0.00011963,2]
[338633573,1726825514459,461.51471724,0.00011976,2]
[338633574,1726825514791,461.51471724,0.00011989,2]
[338633575,1726825515112,461.51471724,0.00012002,2]
[338633576,1726825515442,461.51471724,0.00012016,2]
[338633577,1726825515779,461.51471724,0.00012029,2]
[338633578,1726825516095,461.51471724,0.00012042,2]
[338633579,1726825516410,461.51471724,0.00012055,2]
[338633580,1726825516888,461.51471724,0.00012068,2]
[338633581,1726825517409,461.51471724,0.00012081,2]
[338633582,1726825517736,461.51471724,0.00012094,2]
[338633583,1726825518077,461.51471724,0.00012107,2]
[338633584,1726825518420,461.51471724,0.00012121,2]
[338633585,1726825518915,461.51471724,0.00012134,2]
[338633586,1726825519062,461.51471724,0.00012147,2]
[338633587,1726825519388,461.51471724,0.0001216,2]
[338633588,1726825520146,461.51471724,0.00012173,2]
[338633589,1726825520458,461.51471724,0.00012186,2]
[338633590,1726825520772,461.51471724,0.00012199,2]
[338633591,1726825521132,461.51471724,0.00012212,2]
[338633592,1726825521451,461.51471724,0.00012225,2]
[338633593,1726825521762,461.51471724,0.00012239,2]
[338633594,1726825522079,461.51471724,0.00012252,2]
[338633595,1726825522467,461.51471724,0.00012265,2]
[338633596,1726825522788,461.51471724,0.00012278,2]
[338633597,1726825523211,461.51471724,0.00012291,2]
[338633598,1726825524096,461.51471724,0.00012304,2]
[338633599,1726825524423,461.51471724,0.00012317,2]
[338633600,1726825524745,461.51471724,0.0001233,2]
[338633601,1726825525058,461.51471724,0.00012344,2]
[338633602,1726825525382,461.51471724,0.00012357,2]
[338633603,1726825525718,461.51471724,0.0001237,2]
[338633604,1726825526072,461.51471724,0.00012383,2]
[338633605,1726825526390,461.51471724,0.00012396,2]
[338633606,1726825526706,461.51471724,0.00012409,2]
[338633607,1726825527042,461.51471724,0.00012422,2]
[338633608,1726825527361,461.51471724,0.00012435,2]
[338633609,1726825527684,461.51471724,0.00012448,2]
[338633610,1726825528004,461.51471724,0.00012462,2]
[338633611,1726825528328,461.51471724,0.00012475,2]
[338633612,1726825528742,461.51471724,0.00012488,2]
[338633613,1726825529053,461.51471724,0.00012501,2]
[338633614,1726825529359,461.51471724,0.00012514,2]
[338633615,1726825529700,461.51471724,0.00012527,2]
[338633616,1726825530063,461.51471724,0.0001254,2]
[338633617,1726825530519,461.51471724,0.00012553,2]
[338633618,1726825530826,461.51471724,0.00012567,2]
[338633619,1726825531176,461.51471724,0.0001258,2]
[338633620,1726825531499,461.51471724,0.00012593,2]
[338633621,1726825531999,461.51471724,0.00012606,2]
[338633622,1726825532175,461.51471724,0.00012619,2]
[338633623,1726825532486,461.51471724,0.00012632,2]
[338633624,1726825532813,461.51471724,0.00012645,2]
[338633625,1726825533143,461.51471724,0.00012658,2]
[338633626,1726825533461,461.51471724,0.00012671,2]
[338633627,1726825533782,461.51471724,0.00012685,2]
[338633628,1726825534096,461.51471724,0.00012698,2]
[338633629,1726825534421,461.51471724,0.00012711,2]
[338633630,1726825534731,461.51471724,0.00012724,2]
[338633631,1726825535037,461.51471724,0.00012737,2]
[338633633,1726825543420,150.0,0.00011688,2]
[338633634,1726825543726,150.0,0.00011764,2]
[338633635,1726825544043,150.0,0.0001184,2]
[338633636,1726825544358,150.0,0.00011917,2]
[338633637,1726825544703,150.0,0.00011993,2]
[338633638,1726825545013,150.0,0.0001207,2]
[338633639,1726825545312,150.0,0.00012146,2]
[338633640,1726825545645,150.0,0.00012222,2]
[338633641,1726825545980,150.0,0.00012299,2]
[338633642,1726825546295,150.0,0.00012375,2]
[338633643,1726825546617,150.0,0.00012452,2]
[338633644,1726825546929,150.0,0.00012528,2]
[338633645,1726825547257,150.0,0.00012604,2]
[338633646,1726825547562,150.0,0.00012681,2]
[338633647,1726825552574,150.42432564,0.00011688,2]
[338633648,1726825555975,150.0,0.00011688,2]
[338633649,1726825556402,150.0,0.00011703,2]
[338633651,1726825557166,150.0,0.00011719,2]
[338633652,1726825557482,150.0,0.00011734,2]
[338633653,1726825557799,150.0,0.0001175,2]
[338633654,1726825558563,150.0,0.00011765,2]
[338633655,1726825558869,150.0,0.0001178,2]
[338633656,1726825559186,150.0,0.00011796,2]
[338633657,1726825559499,150.0,0.00011811,2]
[338633658,1726825559827,150.0,0.00011827,2]
[338633659,1726825560131,150.0,0.00011842,2]
[338633660,1726825560656,150.0,0.00011858,2]
[338633661,1726825560965,150.0,0.00011873,2]
[338633662,1726825561290,150.0,0.00011889,2]
[338633663,1726825561610,150.0,0.00011904,2]
[338633664,1726825561955,150.0,0.0001192,2]
[338633665,1726825562416,150.0,0.00011935,2]
[338633667,1726825562755,150.0,0.0001195,2]
[338633668,1726825563257,150.0,0.00011966,2]
[338633669,1726825563455,150.0,0.00011981,2]
[338633670,1726825563769,150.0,0.00011997,2]
[338633671,1726825564083,150.0,0.00012012,2]
[338633672,1726825564429,150.0,0.00012028,2]
[338633673,1726825564863,150.0,0.00012043,2]
[338633674,1726825565181,150.0,0.00012059,2]
[338633675,1726825565494,150.0,0.00012074,2]
[338633676,1726825565872,150.0,0.0001209,2]
[338633677,1726825566155,150.0,0.00012105,2]
[338633678,1726825566463,150.0,0.00012121,2]
[338633679,1726825566789,150.0,0.00012136,2]
[338633680,1726825567108,150.0,0.00012151,2]
[338633681,1726825567448,150.0,0.00012167,2]
[338633682,1726825567764,150.0,0.00012182,2]
[338633683,1726825568118,150.0,0.00012198,2]
[338633684,1726825568454,150.0,0.00012213,2]
[338633685,1726825568861,150.0,0.00012229,2]
[338633686,1726825569123,150.0,0.00012244,2]
[338633687,1726825569459,150.0,0.0001226,2]
[338633688,1726825569787,150.0,0.00012275,2]
[338633689,1726825570118,150.0,0.00012291,2]
[338633690,1726825570450,150.0,0.00012306,2]
[338633691,1726825570775,150.0,0.00012322,2]
[338633692,1726825571091,150.0,0.00012337,2]
[338633693,1726825571420,150.0,0.00012352,2]
[338633694,1726825571742,150.0,0.00012368,2]
[338633695,1726825572498,150.0,0.00012383,2]